[Event "Slovakian-ch Youth 2022"]
[Site "Lubovna"]
[Date "2022.05.24"]
[Round "5.10"]
[White "Kudela, Oliver"]
[Black "Ammer, Erik"]
[Result "0-1"]
[ECO "C55"]
[WhiteElo "1344"]
[BlackElo "1320"]
[Annotator "NA RC COMBH"]
[PlyCount "66"]
[EventDate "2022.05.22"]
[EventCountry "SVK"]
[SourceTitle "playchess.com"]
[Source "ChessBase"]
[SourceQuality "1"]
[TimeControl "40/5400+30:1800+30"]

1. e4 {[%emt 0:00:07]} e5 {[%emt 0:00:08]} 2. Nf3 {[%emt 0:00:10]} Nc6 {[%emt 0:00:03]} 3. Bc4 {[%emt 0:00:36]} Nf6 {[%emt 0:00:06]} 4. d3 {[%emt 0:00:31]} d6 {[%emt 0:00:09]} 5. h3 {[%emt 0:01:16]} Be6 {[%emt 0:00:18]} 6. Bb3 {[%emt 0:01:23]} Qd7 {[%emt 0:00:18]} 7. Be3 {[%emt 0:01:30]} Be7 {[%emt 0:00:45]} 8. Nc3 {[%emt 0:01:26]} h6 {[%emt 0:00:57]} 9. Qd2 {[%emt 0:01:45]} a5 {[%emt 0:01:42]} 10. Bxe6 {[%emt 0:03:49]} fxe6 {[%emt 0:00:25]} 11. a4 {[%emt 0:07:49]} d5 {[%emt 0:01:49]} 12. exd5 {[%emt 0:05:56]} exd5 {[%emt 0:00:34]} 13. d4 {[%emt 0:01:04]} e4 {[%emt 0:02:26]} 14. Nh4 {[%emt 0:02:04]} O-O-O {[%emt 0:02:29]} 15. Ng6 {[%emt 0:00:47]} Rhg8 {[%emt 0:00:37]} 16. Nxe7+ {[%emt 0:00:19]} Qxe7 {[%emt 0:00:10]} 17. O-O {[%emt 0:01:12]} g5 {[%emt 0:00:23]} 18. f3 {[%emt 0:01:06]} exf3 {[%emt 0:00:25]} 19. Rxf3 {[%emt 0:00:57]} g4 {[%emt 0:00:54]} 20. Rg3 {[%emt 0:01:27]} gxh3 {[%emt 0:00:50]} 21. Rxh3 {[%emt 0:04:34]} h5 {[%emt 0:01:03]} 22. Bg5 {[%emt 0:01:16]} Qe6 {[%emt 0:00:58]} 23. Re1 Qf5 24. Bxf6 {[%emt 0:15:18]} Qxf6 {[%emt 0:00:50]} 25. Nb5 {[%emt 0:03:36]} Qf5 {[%emt 0:02:34]} 26. Qd3 {[%emt 0:02:04]} Qg4 {[%emt 0:00:39]} 27. Re2 {[%emt 0:03:19]} Rde8 {[%emt 0:03:02]} 28. Rf2 {[%emt 0:02:26]} Re1+ {[%emt 0:02:05]} 29. Kh2 {[%emt 0:00:35]} Re4 {[%emt 0:02:28]} 30. Qf3 {[%emt 0:01:44]} Nxd4 {[%emt 0:03:04]} 31. Qc3 {[%emt 0:02:37]} Nxb5 {[%emt 0:01:12]} 32. axb5 {[%emt 0:00:29]} Re2 {[%emt 0:07:29]} 33. b6 {[%emt 0:01:26]} Qxg2+ {[%emt 0:01:03]} 0-1

[Event "Slovakian-ch Youth 2022"]
[Site "Lubovna"]
[Date "2022.05.24"]
[Round "5.11"]
[White "Babjak, Samuel"]
[Black "Kuna, Patrik"]
[Result "1/2-1/2"]
[ECO "D29"]
[WhiteElo "1577"]
[BlackElo "1811"]
[Annotator "NA RC COMBH"]
[PlyCount "95"]
[EventDate "2022.05.22"]
[EventCountry "SVK"]
[SourceTitle "playchess.com"]
[Source "ChessBase"]
[SourceQuality "1"]
[TimeControl "40/5400+30:1800+30"]

1. d4 {[%emt 0:01:04]} d5 {[%emt 0:00:54]} 2. c4 {[%emt 0:00:05]} e6 {[%emt 0:00:04]} 3. Nc3 {[%emt 0:00:03]} Nf6 {[%emt 0:00:09]} 4. Nf3 {[%emt 0:00:05]} c6 {[%emt 0:02:28]} 5. e3 {[%emt 0:00:05]} Nbd7 {[%emt 0:00:25]} 6. Bd3 {[%emt 0:00:34]} dxc4 {[%emt 0:00:04]} 7. Bxc4 {[%emt 0:00:05]} b5 {[%emt 0:00:02]} 8. Bb3 {[%emt 0:00:04]} a6 {[%emt 0:10:46]} 9. O-O {[%emt 0:03:03]} c5 {[%emt 0:02:49]} 10. Qe2 {[%emt 0:02:47]} Bb7 {[%emt 0:05:57]} 11. Rd1 {[%emt 0:01:34] The old main line.} c4 {[%emt 0:02:59]} 12. Bc2 {[%emt 0:00:05]} Be7 {[%emt 0:01:32]} 13. e4 {[%emt 0:02:13]} O-O {[%emt 0:01:18]} 14. e5 {[%emt 0:02:17]} Nd5 {[%emt 0:02:51]} 15. Qe4 {[%emt 0:00:30]} g6 {[%emt 0:01:04]} 16. Qg4 {[%emt 0:00:36] [#]} Nb4 $146 {[%emt 0:04:36]} ({Predecessor:} 16... Nxc3 17. bxc3 Bxf3 18. Qxf3 Nb6 19. g3 Nd5 20. h4 Re8 21. Kg2 b4 22. cxb4 Bxb4 {½-½ (35) Pregarac,V (2181)-Plenca,J (2049) Trieste 2012}) 17. Bb1 {[%emt 0:02:44]} Re8 {[%emt 0:27:31]} 18. Ng5 {[%emt 0:19:40]} Nd3 {[%emt 0:05:16]} 19. Bxd3 {[%emt 0:00:59]} cxd3 {[%emt 0:00:07]} 20. Qh4 {[%emt 0:09:14]} h5 {[%emt 0:08:41]} 21. Qg3 {[%emt 0:05:47]} Kg7 {[%emt 0:05:44]} 22. Rxd3 {[%emt 0:03:31]} Nb6 {[%emt 0:03:51] [#]} 23. Nce4 $16 {[%emt 0:23:04]} (23. Nxf7 $1 $18 {[%mdl 512] is the precise move to win.} Kxf7 24. Qf4+ Bf6 25. Rg3 (25. exf6 e5 $18) (25. Qxf6+ Qxf6 26. exf6 b4 $16)) 23... Rc8 {[%emt 0:05:14] [#]} 24. Qf4 {[%emt 0:06:04]} ({Better is} 24. Nc5 $1 $18 Qd5 {[#]} 25. Nxf7 $1) 24... Bxg5 {[%emt 0:05:03]} 25. Nxg5 {[%emt 0:00:08]} Qc7 {[%emt 0:00:13]} 26. Qf6+ {[%emt 0:03:29]} ({Inferior is} 26. Rf3 Bxf3 27. Nxf3 Rh8 $17) (26. Nh3 $16 Rh8 27. Qf6+ Kg8 28. Rc3) 26... Kg8 {[%emt 0:00:27]} 27. Rc3 {[%emt 0:00:58]} Qd7 $2 {[%emt 0:00:22] [#]} (27... Qe7 $16 {is a better defense.}) 28. Ne4 $1 {[%emt 0:02:20]} Nd5 $2 {[%emt 0:01:07] [#]} (28... Bxe4 $2 {is a self mate.} 29. Bh6 Rxc3 30. Qg7#) (28... Kh7) 29. Qg5 $2 {[%emt 0:02:23]} Rxc3 {[%emt 0:01:44]} 30. bxc3 {[%emt 0:00:13]} Qe7 {[%emt 0:00:34]} 31. Nf6+ {[%emt 0:01:58]} Nxf6 {[%emt 0:00:08]} 32. exf6 {[%emt 0:00:05]} Qf8 {[%emt 0:00:38]} 33. a4 {[%emt 0:01:00]} b4 {[%emt 0:00:54]} 34. cxb4 {[%emt 0:00:20]} Qxb4 {[%emt 0:00:37]} 35. Bd2 {[%emt 0:04:49]} Qxd4 {[%emt 0:00:33]} 36. Re1 {[%emt 0:00:21]} Qd5 {[%emt 0:00:56]} 37. Re5 {[%emt 0:00:28]} Qd6 {[%emt 0:00:38]} 38. Qh6 {[%emt 0:01:50]} Qf8 {[%emt 0:00:04]} 39. Qf4 {[%emt 0:01:00]} Rd8 {[%emt 0:00:56]} 40. h3 {[%emt 0:01:05]} Kh7 {[%emt 0:00:24]} 41. Bb4 {[%emt 0:02:47]} Qh6 {[%emt 0:01:13]} 42. Qc4 {[%emt 0:04:00]} Rc8 {[%emt 0:04:24]} 43. Qd4 {[%emt 0:01:28]} Qc1+ {[%emt 0:01:25]} 44. Re1 {[%emt 0:06:18]} Qg5 {[%emt 0:01:38]} 45. g3 {[%emt 0:01:46]} Bd5 {[%emt 0:05:30]} 46. Bd2 {[%emt 0:02:47]} Qf5 {[%emt 0:01:52]} 47. Qf4 {[%emt 0:00:35]} Qxf4 {[%emt 0:01:24]} 48. Bxf4 {[%emt 0:00:08]} 1/2-1/2

[Event "Slovakian-ch Youth 2022"]
[Site "Lubovna"]
[Date "2022.05.24"]
[Round "5.11"]
[White "Tokarcik, Jan"]
[Black "Vida, Gergo"]
[Result "1-0"]
[ECO "C54"]
[WhiteElo "1313"]
[BlackElo "1821"]
[Annotator "NA COMBH"]
[PlyCount "71"]
[EventDate "2022.05.22"]
[EventCountry "SVK"]
[SourceTitle "playchess.com"]
[Source "ChessBase"]
[SourceQuality "1"]
[TimeControl "40/5400+30:1800+30"]

1. e4 {[%emt 0:00:03]} e5 {[%emt 0:00:46]} 2. Nf3 {[%emt 0:00:05]} Nc6 {[%emt 0:00:10]} 3. Bc4 {[%emt 0:00:06]} Bc5 {[%emt 0:00:08]} 4. c3 {[%emt 0:00:14]} Nf6 {[%emt 0:00:08]} 5. d4 {[%emt 0:00:06]} exd4 {[%emt 0:00:06]} 6. cxd4 {[%emt 0:00:07]} Bb4+ {[%emt 0:00:08]} 7. Nc3 {[%emt 0:00:15]} Nxe4 {[%emt 0:00:12]} 8. O-O {[%emt 0:00:13]} Bxc3 {[%emt 0:00:13]} 9. bxc3 {[%emt 0:00:09]} d5 {[%emt 0:00:20]} 10. Bd3 {[%emt 0:01:09]} O-O {[%emt 0:00:27]} 11. Bxe4 {[%emt 0:06:17]} dxe4 {[%emt 0:01:54]} 12. Ng5 {[%emt 0:04:37]} Bf5 {[%emt 0:02:46]} 13. d5 {[%emt 0:08:27]} Ne7 {[%emt 0:07:00]} 14. g4 {[%emt 0:09:48]} Bg6 {[%emt 0:05:33]} 15. c4 {[%emt 0:10:42]} h6 {[%emt 0:02:22]} 16. Nh3 {[%emt 0:04:55]} Qd7 {[%emt 0:04:29]} 17. Nf4 {[%emt 0:12:11]} Bh7 {[%emt 0:01:40]} 18. Bb2 {[%emt 0:05:30]} Rfd8 {[%emt 0:05:18]} 19. h3 {[%emt 0:07:10]} Re8 {[%emt 0:24:18]} 20. Nh5 {[%emt 0:02:12]} Ng6 {[%emt 0:05:42]} 21. Bxg7 {[%emt 0:06:50]} Qe7 {[%emt 0:18:25]} 22. Bf6 {[%emt 0:07:22]} Qd6 {[%emt 0:01:17]} 23. Qd2 {[%emt 0:01:48]} Ne5 {[%emt 0:00:52]} 24. Bxe5 {[%emt 0:04:57]} Rxe5 {[%emt 0:02:27]} 25. Qd4 {[%emt 0:03:23]} Qe7 {[%emt 0:03:35]} 26. Rfe1 {[%emt 0:01:28]} e3 {[%emt 0:07:37]} 27. f4 {[%emt 0:02:37]} Rxh5 {[%emt 0:00:54]} 28. gxh5 {[%emt 0:00:30]} Qh4 {[%emt 0:00:40]} 29. Rxe3 {[%emt 0:00:34]} b6 {[%emt 0:00:32]} 30. Rae1 {[%emt 0:00:44]} Rf8 {[%emt 0:00:36]} 31. R1e2 {[%emt 0:00:27]} Bf5 {[%emt 0:00:43]} 32. Rg2+ {[%emt 0:00:17]} Bg6 {[%emt 0:01:01]} 33. hxg6 {[%emt 0:00:20]} f6 {[%emt 0:00:49]} 34. g7 {[%emt 0:00:33]} Rd8 {[%emt 0:00:42]} 35. Rg4 {[%emt 0:00:14]} Qh5 {[%emt 0:00:51]} 36. Qxf6 {[%emt 0:00:33]} 1-0

[Event "Slovakian-ch Youth 2022"]
[Site "Lubovna"]
[Date "2022.05.24"]
[Round "5.12"]
[White "Gourlay, Martin B"]
[Black "Krivosik, Matus"]
[Result "1-0"]
[ECO "B12"]
[WhiteElo "1911"]
[BlackElo "1224"]
[Annotator "TA"]
[PlyCount "117"]
[EventDate "2022.05.22"]
[EventCountry "SVK"]
[SourceTitle "playchess.com"]
[Source "ChessBase"]
[SourceQuality "1"]
[TimeControl "40/5400+30:1800+30"]

{[%evp 10,117,15,0,-1,-72,-77,-83,-42,-70,-60,-77,-73,-74,0,0,52,45,53,50,71,46,102,33,26,0,0,-27,211,204,229,189,400,377,452,431,428,431,844,534,534,417,400,389,370,314,305,207,227,187,276,272,329,267,311,273,316,291,328,277,347,296,512,518,510,466,507,487,1349,536,521,501,467,169,564,200,627,575,750,727,1162,1162,1975,1234,1113,1092,5701,5459,29986,29987,29975,29976,29990,29991,29991,29990,29990,29991,29991,29991,29993,29994,29995,29996,29996,29997,29997,29998,29998,29999]} 1. e4 {[%emt 0:00:15]} c6 {[%emt 0:00:33]} 2. d4 {[%emt 0:00:21]} d5 {[%emt 0:00:06]} 3. e5 {[%emt 0:00:25]} c5 {[%emt 0:00:10]} 4. c3 {[%emt 0:00:22]} Nc6 {[%emt 0:00:28]} 5. Nf3 {[%emt 0:01:05]} Bg4 {[%emt 0:00:20]} 6. Be2 {[%emt 0:01:43]} e6 {[%emt 0:00:31] B12: Caro-Kann: Advance Variation.} 7. h3 {[%emt 0:01:41]} (7. Nbd2 $11 {remains equal.}) 7... Bxf3 $17 {[%emt 0:00:06]} 8. Bxf3 {[%emt 0:00:22]} Nh6 {[%emt 0:01:07] Black is better.} 9. Bxh6 {[%emt 0:01:11]} gxh6 {[%emt 0:00:02] [#]} 10. Bh5 $146 {[%emt 0:03:57]} ({Predecessor:} 10. O-O Qb6 11. Qc2 cxd4 12. cxd4 Qxd4 13. Nc3 Nxe5 14. Be2 Bg7 15. Rad1 Qf4 16. g3 {0-1 (36) Gschiel,A (1908)-Ofner,M (2177) Playchess.com INT 2020}) 10... cxd4 {[%emt 0:02:54]} (10... Rg8 {keeps more tension.} 11. O-O cxd4 12. cxd4 Qg5) 11. cxd4 {[%emt 0:01:17]} Bg7 {[%emt 0:01:36]} ({Black should play} 11... Qg5 $17 12. O-O Rg8) 12. Nc3 $11 {[%emt 0:03:59]} Qb6 {[%emt 0:01:45]} (12... O-O $11) 13. Ne2 $1 $14 {[%emt 0:02:27]} Qxb2 {[%emt 0:03:27]} 14. O-O {[%emt 0:00:10]} Qa3 {[%emt 0:02:13]} 15. Qd2 {[%emt 0:01:11][%mdl 1024] White has strong compensation.} Na5 {[%emt 0:02:27]} (15... O-O $14) 16. Rfc1 {[%emt 0:02:44]} ({White should try} 16. f4 $16) 16... Nc4 {[%emt 0:01:11]} 17. Qf4 {[%emt 0:00:46]} (17. Qd1 $5 {[%cal Rc1c3]}) 17... O-O {[%emt 0:01:46]} 18. Rc3 {[%emt 0:02:54][%cal Bc1c3,Bc3g3,Bg3g4][%mdl 32]} Qb2 {[%emt 0:09:01] Black cannot hold the game after this.} (18... Qe7 $1 $11) 19. Rac1 $40 {[%emt 0:00:13][%mdl 128] [#] Hoping for Rg3. White is out for blood.} Kh8 {[%emt 0:08:55]} 20. Rg3 {[%emt 0:01:05]} Rg8 {[%emt 0:02:53]} (20... Qd2 {keeps fighting.}) 21. Qxf7 {[%emt 0:01:03]} Qb6 {[%emt 0:01:55]} 22. Qe7 {[%emt 0:02:42]} (22. Rb3 Qa6 23. Rxb7 Nd2 $18) 22... Qd8 {[%emt 0:06:49]} 23. Qxe6 {[%emt 0:00:55]} Nb6 {[%emt 0:06:00]} (23... Rc8 $142 24. Bf7 Rf8 25. Qxd5 Qe7 26. Rxc4 Rcd8) 24. Rg4 {[%emt 0:05:31]} Rc8 {[%emt 0:02:44]} 25. Rc3 {[%emt 0:01:28]} Rxc3 {[%emt 0:01:27]} 26. Nxc3 {[%emt 0:01:03]} Qc8 {[%emt 0:01:06]} 27. Qxc8 {[%emt 0:01:01]} (27. Bf7 Qxe6 28. Bxe6 Re8 $18) 27... Rxc8 {[%emt 0:02:24]} 28. e6 {[%emt 0:01:22]} Bf6 {[%emt 0:04:15]} (28... Rxc3 $2 29. e7 Rc1+ 30. Kh2 $18) 29. Bf7 {[%emt 0:01:14]} Rd8 {[%emt 0:02:24]} (29... Be7 {might work better.} 30. Ne2 Nc4) 30. Nb5 {[%emt 0:01:02]} h5 {[%emt 0:03:17]} 31. Rg3 {[%emt 0:00:34]} Bh4 {[%emt 0:00:45]} 32. Re3 {[%emt 0:02:39] And now e7 would win.} ({Don't play} 32. Bxh5 $6 Bxg3 33. e7 (33. fxg3 Nc8 $11) 33... Bh4 34. exd8=N (34. exd8=R+ Bxd8 35. Nxa7 Na4 $18) 34... Bxd8 35. Nxa7 Na4 $18) 32... Nc8 {[%emt 0:00:39]} 33. Bxh5 {[%emt 0:02:11]} Bg5 {[%emt 0:03:31]} 34. Re5 {[%emt 0:00:37]} h6 {[%emt 0:01:04]} 35. g3 {[%emt 0:00:19]} Kg7 $2 {[%emt 0:00:37]} (35... Ne7 36. h4 (36. Nxa7 Bf6 $16) 36... Bf6) 36. Nc7 {[%emt 0:03:13]} Ne7 {[%emt 0:02:09]} 37. Ne8+ {[%emt 0:01:39]} Kh8 {[%emt 0:01:35]} 38. f4 {[%emt 0:00:11]} Nc6 {[%emt 0:00:39]} (38... Rxe8 $142 39. Bxe8 Bf6) 39. Rf5 {[%emt 0:01:35]} (39. fxg5 $142 {Threatens to win with Rf5.} Ne7 40. gxh6) 39... Be7 {[%emt 0:00:55]} 40. Nc7 {[%emt 0:02:09]} Nxd4 {[%emt 0:00:53]} 41. Rxd5 {[%emt 0:31:43]} (41. Rf7 Nc6 42. f5 Bc5+ 43. Kg2) 41... Rc8 $2 {[%emt 0:33:35]} (41... Rxd5 {is tougher.} 42. Nxd5 Bc5) 42. Rxd4 $2 {[%emt 0:01:00]} (42. Rd7 Bc5 43. Kg2) 42... Bc5 {[%emt 0:01:09] [#]} (42... Rxc7 43. Rd5 Rc6) 43. e7 $1 {[%emt 0:02:15]} Bxe7 {[%emt 0:02:41]} (43... Bxd4+ 44. Kg2) 44. Rd7 {[%emt 0:00:30]} Bd8 {[%emt 0:01:34]} 45. Ne6 {[%emt 0:00:48][%csl LRb7,LRd8]} Bb6+ {[%emt 0:00:46]} 46. Kf1 {[%emt 0:00:56]} Rc1+ {[%emt 0:00:45]} 47. Bd1 {[%emt 0:01:02]} Rc6 {[%emt 0:01:09]} 48. f5 {[%emt 0:00:52] Intending Nf4 and mate.} a5 {[%emt 0:01:34]} 49. Bb3 {[%emt 0:00:22] White mates.} Rc1+ 50. Kg2 {[%emt 0:00:22]} Rg1+ {[%emt 0:00:56]} 51. Kf3 {[%emt 0:00:09]} Rf1+ {[%emt 0:00:17]} 52. Ke4 {[%emt 0:00:42]} Re1+ {[%emt 0:00:34]} 53. Kf4 {[%emt 0:00:09]} Rf1+ {[%emt 0:00:48]} 54. Ke5 {[%emt 0:00:11]} Re1+ {[%emt 0:00:35]} 55. Kf6 {[%emt 0:00:19]} Re3 {[%emt 0:01:03]} 56. Nf8 {[%emt 0:00:26][%csl Gf8][%cal Rd7h7]} Bd4+ {[%emt 0:01:27]} 57. Rxd4 {[%emt 0:00:25]} Re8 {[%emt 0:00:05]} 58. Ng6+ {[%emt 0:00:34]} Kh7 {[%emt 0:00:24]} 59. Rd7+ {[%emt 0:00:15] Weighted Error Value: White=0.64/Black=0.84} 1-0

[Event "Slovakian-ch Youth 2022"]
[Site "Lubovna"]
[Date "2022.05.24"]
[Round "5.12"]
[White "Valko, Michal"]
[Black "Sokolovsky, Jakub"]
[Result "1/2-1/2"]
[ECO "A45"]
[WhiteElo "1906"]
[BlackElo "1613"]
[Annotator "TA"]
[PlyCount "117"]
[EventDate "2022.05.22"]
[EventCountry "SVK"]
[SourceTitle "playchess.com"]
[Source "ChessBase"]
[SourceQuality "1"]
[TimeControl "40/5400+30:1800+30"]

{[%evp 12,117,-26,-32,-31,-44,-36,-47,-25,-69,-12,-13,-8,-5,0,-69,-67,-76,-15,-28,-20,-7,-11,-108,34,-112,-102,-107,-93,-98,-63,-127,-119,-119,-119,-116,-125,-115,-118,-260,-100,-96,-90,-100,-101,-252,-247,-1110,-1108,-885,-1058,-1052,-1059,-918,-119,-891,0,-848,-171,-232,-235,-218,-127,-170,-163,-156,-154,-153,-151,-186,-179,-184,-170,-146,-141,-150,-172,-171,-113,-242,-242,-242,-242,-242,-171,-279,0,0,0,0,0,0,0,0,0,0,0,-13,0,0,0,0,0,0,0,0,-149,-207]} 1. d4 {[%emt 0:00:18]} Nf6 {[%emt 0:00:26]} 2. Bg5 {[%emt 0:00:18]} Ne4 {[%emt 0:02:15]} 3. Bf4 {[%emt 0:00:11]} d5 {[%emt 0:00:26]} 4. f3 {[%emt 0:01:27]} Nf6 {[%emt 0:00:48]} 5. e4 {[%emt 0:00:56]} dxe4 {[%emt 0:02:35]} 6. Nc3 {[%emt 0:00:50]} exf3 {[%emt 0:04:05]} 7. Nxf3 {[%emt 0:00:11]} Bf5 {[%emt 0:06:07] A45: Trompowsky Attack.} 8. Bc4 {[%emt 0:05:25]} e6 $1 {[%emt 0:00:54]} 9. Qe2 {[%emt 0:10:43]} Bb4 {[%emt 0:02:08] Black is slightly better.} (9... Bd6 $5 {[%cal Rd6f4]} 10. Ne5 O-O $15) 10. O-O {[%emt 0:01:38] [#]} Bxc3 $146 {[%emt 0:04:47]} (10... O-O $15) ({Predecessor:} 10... O-O 11. Nd1 Nc6 12. c3 Bd6 13. Bg5 h6 14. Bh4 g5 15. Be1 Nd5 16. Bxd5 exd5 {1-0 (32) Walton,A (2147)-Whitfield,C (1987) Leyland 2010}) 11. bxc3 $11 {[%emt 0:00:02]} O-O {[%emt 0:00:53]} 12. Rab1 {[%emt 0:04:19]} b6 {[%emt 0:11:49]} 13. Bd3 {[%emt 0:08:06]} (13. Bg5 $11) 13... Bxd3 {[%emt 0:08:56]} 14. Qxd3 {[%emt 0:00:53]} h6 {[%emt 0:01:04]} (14... Nbd7 $17) 15. Ne5 {[%emt 0:07:09]} Nbd7 {[%emt 0:12:52]} 16. Nc6 {[%emt 0:02:34]} Qe8 {[%emt 0:00:20]} 17. Qh3 {[%emt 0:01:30]} (17. Bxc7 $2 Rc8 18. Nxa7 (18. Qg3 $2 Ne4 $19) 18... Rxc7 $19) (17. c4 $11) 17... Nd5 {[%emt 0:02:27] [#]} (17... Ne4 $1 $17 18. Rbe1 f5) 18. Bc1 {[%emt 0:03:05]} (18. Bxh6 $1 $14 {was the only good move.} f5 19. Qg3) 18... N7f6 $17 {[%emt 0:02:01]} 19. Ne5 {[%emt 0:00:32] aiming for c4.} Ne4 $1 {[%emt 0:03:25] Pair of Knights!} 20. c4 {[%emt 0:04:15]} f6 {[%emt 0:10:27]} 21. cxd5 {[%emt 0:11:26]} (21. Ba3 $1 $15 Ndc3 22. Bxf8 Nxb1 23. Bxg7 (23. Qg4 Ng5 $15) 23... Kxg7 24. Qg4+ Ng5 25. Rxb1) 21... fxe5 {[%emt 0:00:02]} 22. Rxf8+ {[%emt 0:00:26]} Qxf8 {[%emt 0:00:26]} 23. Qxe6+ {[%emt 0:00:23]} Kh8 {[%emt 0:00:42]} 24. Be3 {[%emt 0:01:30] Against Qf2+} Nc3 $1 $36 {[%emt 0:03:39][%csl LRa2,LRb1][%mdl 2048] White is under strong pressure.} 25. Ra1 {[%emt 0:04:18]} (25. Re1 $17 Re8 26. Qg4) 25... Ne2+ $2 {[%emt 0:05:38]} (25... Re8 $19 26. Qg6 exd4) 26. Kh1 {[%emt 0:02:01]} Nxd4 {[%emt 0:04:55]} 27. Bxd4 {[%emt 0:05:06]} exd4 {[%emt 0:00:02][%cal Be5d4,Bd4d3,Bd3d2][%mdl 4128] Endgame KQR-KQR} 28. Kg1 $2 {[%emt 0:00:34]} (28. Qe4 $17) 28... Qc5 $19 {[%emt 0:02:32]} 29. Rc1 $2 {[%emt 0:05:11]} (29. Qc6 Qxc6 30. dxc6) (29. Qc6 Qxc6 30. dxc6) 29... d3+ {[%emt 0:01:14]} 30. Kh1 {[%emt 0:00:01]} d2 {[%emt 0:01:09]} 31. Rd1 {[%emt 0:00:01]} Qxc2 {[%emt 0:00:20]} 32. Qe2 {[%emt 0:00:02]} Qc3 $2 {[%emt 0:00:30]} (32... Rf8 $19 {[%cal Of8f2] Strongly threatening ...Rf2!} 33. h3 Rf2 $3 {[%mdl 512]}) 33. Qe6 $2 {[%emt 0:00:59][%mdl 8192]} (33. h3 $17) 33... Qc2 {[%emt 0:00:30][%csl LRa2,LRd1]} 34. Qe2 {[%emt 0:00:01]} Qc1 $2 {[%emt 0:03:25]} (34... Rf8 {[%cal Of8f2] White must now prevent ...Rf2!} 35. h3 {[#]} Rf2 $3 {[%mdl 512]}) 35. Qxd2 {[%emt 0:00:06]} (35. h4 $142) 35... Qxd2 {[%emt 0:00:16]} 36. Rxd2 {[%emt 0:00:30] KR-KR} Rf8 {[%emt 0:00:57]} (36... Rd8 37. h3 c5) (36... Rd8 $19 {[%cal Oc7c6]} 37. g3 Kg8) 37. h3 {[%emt 0:00:00]} Kh7 {[%emt 0:01:28]} 38. Rc2 {[%emt 0:02:00]} Rf7 {[%emt 0:00:30]} 39. Rc6 {[%emt 0:00:07]} Rd7 {[%emt 0:01:03]} 40. Kg1 {[%emt 0:00:49]} Rxd5 {[%emt 0:00:32] Hoping for ...Rc5.} 41. Rxc7 {[%emt 0:30:04]} a5 {[%emt 0:30:13]} 42. a4 {[%emt 0:02:45]} Rd4 {[%emt 0:01:32]} 43. Rc6 {[%emt 0:02:35]} Rb4 {[%emt 0:00:53]} ({But not} 43... Rxa4 $2 44. Rxb6 Ra1+ 45. Kh2 $19) 44. Kf2 {[%emt 0:00:43]} h5 {[%emt 0:00:37]} (44... Rxa4 $19 45. Rxb6 Kg8) 45. g3 {[%emt 0:02:02]} (45. Ke3 $17) 45... h4 {[%emt 0:00:00]} ({Weaker is} 45... Rxa4 46. Rxb6 g6 47. Rd6 $17) 46. gxh4 {[%emt 0:00:00]} Rxh4 {[%emt 0:00:00]} (46... Rxa4 47. Rxb6 Rxh4 48. Ra6 $17) 47. Rxb6 {[%emt 0:00:00]} Rxa4 {[%emt 0:00:00]} ({Worse is} 47... Rxh3 48. Rb5 $11) 48. Kg3 {[%emt 0:00:00]} (48. Ke1 $142) 48... g6 $2 {[%emt 0:00:00]} ({Better is} 48... Ra1 $19 {...a4 is the strong threat.} 49. Ra6 a4) 49. Ra6 $11 {[%emt 0:00:00]} Kh6 {[%emt 0:00:00]} 50. Ra8 {[%emt 0:00:00]} Kg5 {[%emt 0:00:00]} 51. h4+ $1 {[%emt 0:00:00]} Kf6 {[%emt 0:00:00]} 52. Rf8+ {[%emt 0:00:00]} Kg7 {[%emt 0:00:00]} 53. Ra8 {[%emt 0:00:00]} Ra1 {[%emt 0:00:00]} 54. Kf4 {[%emt 0:00:00]} a4 {[%emt 0:00:00]} 55. Ra7+ {[%emt 0:00:00]} Kh6 {[%emt 0:00:00]} 56. Ra5 {[%emt 0:00:00]} a3 {[%emt 0:00:00] ( -> ...a2)} 57. Kg3 {[%emt 0:00:00]} a2 {[%emt 0:00:00]} (57... Kg7 $11 58. Ra7+ Kf8) 58. Kg2 $17 {[%emt 0:00:00]} Kg7 {[%emt 0:00:00]} 59. Ra6 {[%emt 0:00:00] Weighted Error Value: White=0.52/Black=0.59} (59. Ra8 $17 {might work better.}) 1/2-1/2

[Event "Slovakian-ch Youth 2022"]
[Site "Lubovna"]
[Date "2022.05.24"]
[Round "5.13"]
[White "Toth, Marton"]
[Black "Otahal, Kristian"]
[Result "1-0"]
[ECO "B24"]
[WhiteElo "1849"]
[BlackElo "1000"]
[Annotator "NA RC COMBH"]
[PlyCount "59"]
[EventDate "2022.05.22"]
[EventCountry "SVK"]
[SourceTitle "playchess.com"]
[Source "ChessBase"]
[SourceQuality "1"]
[TimeControl "40/5400+30:1800+30"]

1. e4 c5 {[%emt 0:00:24]} 2. Nc3 {[%emt 0:00:12]} Nc6 {[%emt 0:00:14]} 3. g3 {[%emt 0:00:16]} e6 {[%emt 0:00:09]} 4. Bg2 {[%emt 0:00:19]} Nf6 {[%emt 0:00:08]} 5. Nge2 {[%emt 0:00:42]} d5 {[%emt 0:00:44]} 6. exd5 {[%emt 0:03:27]} exd5 {[%emt 0:00:09]} 7. d4 {[%emt 0:01:16]} Be6 {[%emt 0:01:34]} 8. O-O {[%emt 0:01:06]} Qd7 {[%emt 0:00:59]} 9. Re1 {[%emt 0:03:32]} Bh3 {[%emt 0:00:21]} 10. Nf4+ {[%emt 0:00:24]} Be6 {[%emt 0:00:26]} 11. Ncxd5 {[%emt 0:01:07]} Nxd5 {[%emt 0:00:20]} 12. Bxd5 {[%emt 0:02:44]} Nd8 {[%emt 0:00:45]} 13. Bxb7 {[%emt 0:17:18]} Qxb7 {[%emt 0:02:07]} 14. d5 {[%emt 0:00:44]} Qd7 {[%emt 0:01:28]} 15. Qe2 {[%emt 0:03:38]} Be7 {[%emt 0:03:47]} 16. dxe6 {[%emt 0:01:01]} Nxe6 {[%emt 0:00:10]} 17. Nxe6 {[%emt 0:00:09]} fxe6 {[%emt 0:00:09]} 18. Qxe6 {[%emt 0:00:22]} Qxe6 {[%emt 0:00:34]} 19. Rxe6 {[%emt 0:00:14]} Kd7 {[%emt 0:01:56]} 20. Re5 {[%emt 0:01:50]} Rac8 {[%emt 0:01:18]} 21. Rd5+ {[%emt 0:01:10]} Ke8 {[%emt 0:03:52]} 22. Bf4 {[%emt 0:03:05]} Rd8 {[%emt 0:01:41]} 23. Rad1 {[%emt 0:01:40]} Rxd5 {[%emt 0:02:51]} 24. Rxd5 {[%emt 0:00:39]} Rf8 {[%emt 0:11:56]} 25. Be3 {[%emt 0:05:18]} Rf6 {[%emt 0:13:38]} 26. Bxc5 {[%emt 0:02:47]} Bxc5 27. Rxc5 {[%emt 0:00:15]} Ra6 {[%emt 0:00:29]} 28. a3 {[%emt 0:02:30]} Rd6 {[%emt 0:00:18]} 29. b4 {[%emt 0:00:56]} Rb6 {[%emt 0:00:13]} 30. Rc8+ {[%emt 0:00:37]} 1-0